bitfinex/quotes_BTCUSD_20250330
["timestamp","ask_amount","ask_price","bid_price","bid_amount"]
[1743361175564,0.0001685,82907.0,82906.0,0.25622005]
[1743361176311,0.3,82928.0,82921.0,0.253251]
[1743361176527,4.693e-05,82928.0,82923.0,0.0009949]
[1743361176759,0.00765262,82927.0,82923.0,0.0009949]
[1743361176959,0.00765262,82927.0,82923.0,0.01742138]
[1743361177181,0.02172844,82927.0,82923.0,0.01742138]
[1743361177323,0.00765262,82927.0,82923.0,0.01742138]
[1743361177890,0.253236,82926.0,82923.0,0.01742138]
[1743361178718,0.01265262,82927.0,82923.0,0.0009949]
[1743361179094,0.02698508,82927.0,82923.0,0.0009949]
[1743361179291,0.02411959,82925.0,82923.0,0.0009949]
[1743361179812,0.012059,82924.0,82923.0,0.0009949]
[1743361180440,0.01246468,82924.0,82923.0,0.0009949]
[1743361181307,0.01646468,82924.0,82923.0,0.0009949]
[1743361181912,0.02046468,82924.0,82923.0,0.0009949]
[1743361182285,0.00840568,82924.0,82923.0,0.0009949]
[1743361184482,0.02046468,82924.0,82923.0,0.0009949]
[1743361186013,0.00840568,82924.0,82923.0,0.0009949]
[1743361188581,0.02046468,82924.0,82923.0,0.0009949]
[1743361188778,0.02775513,82924.0,82923.0,0.0009949]
[1743361189217,0.07285424,82925.0,82923.0,0.0009949]
[1743361189431,0.00769613,82924.0,82923.0,0.0009949]
[1743361189628,0.01975513,82924.0,82923.0,0.0009949]
[1743361190014,0.02216663,82924.0,82923.0,0.0009949]
[1743361190424,0.0410685,82924.0,82923.0,0.0009949]
[1743361190991,0.02216663,82924.0,82923.0,0.0009949]
[1743361191508,0.04675113,82924.0,82923.0,0.0009949]
[1743361191913,0.04433963,82924.0,82923.0,0.0009949]
[1743361192089,0.03428063,82924.0,82923.0,0.0009949]
[1743361193608,0.03428063,82924.0,82923.0,0.0013317]
[1743361194430,0.05318234,82924.0,82923.0,0.0013317]
[1743361197060,0.03428063,82924.0,82923.0,0.0013317]
[1743361198279,0.03428063,82924.0,82923.0,0.02799677]
[1743361198490,0.00969613,82924.0,82923.0,0.0946907]
[1743361199322,0.00969613,82924.0,82923.0,0.0826317]
[1743361199849,0.00969613,82924.0,82923.0,0.0946907]
[1743361200844,0.02175513,82924.0,82923.0,0.0013317]
[1743361201112,0.02416663,82924.0,82923.0,0.0013317]
[1743361201603,0.02175513,82924.0,82923.0,0.0013317]
[1743361202319,0.02416663,82924.0,82923.0,0.0013317]
[1743361202868,0.00969613,82924.0,82923.0,0.0013317]
[1743361203904,0.00969613,82924.0,82923.0,0.0133907]
[1743361204688,0.00969613,82924.0,82923.0,0.06386407]
[1743361205290,0.00969613,82924.0,82923.0,0.30505107]
[1743361205925,0.00969613,82924.0,82923.0,0.06386407]
[1743361206121,0.00969613,82924.0,82923.0,0.0013317]
[1743361206326,0.00769613,82924.0,82923.0,0.0013317]
[1743361206529,0.00969613,82924.0,82923.0,0.0013317]
[1743361206738,0.01169613,82924.0,82923.0,0.0013317]
[1743361207308,0.01169613,82924.0,82923.0,0.2425187]
[1743361208998,0.01169613,82924.0,82923.0,0.0013317]
[1743361209219,0.01169613,82924.0,82923.0,0.2545777]
[1743361210811,0.26493913,82924.0,82923.0,0.0013317]
[1743361211231,0.01169613,82924.0,82923.0,0.0013317]
[1743361211641,0.02375513,82924.0,82923.0,0.0013317]
[1743361213626,0.04265579,82924.0,82923.0,0.0013317]
[1743361214657,0.03059679,82924.0,82923.0,0.0013317]
[1743361214860,0.04265579,82924.0,82923.0,0.0013317]
[1743361216036,0.35960814,82924.0,82923.0,0.0013317]
[1743361216242,0.3879962,82924.0,82923.0,0.0003368]
[1743361216448,0.35719664,82924.0,82923.0,0.0003368]
[1743361216653,0.33829598,82924.0,82923.0,0.0003368]
[1743361221286,0.35719957,82924.0,82923.0,0.0003368]
[1743361224255,0.33829598,82924.0,82923.0,0.0003368]
[1743361224455,0.40172662,82924.0,82923.0,0.0003368]
[1743361224656,0.33829598,82924.0,82923.0,0.0003368]
[1743361230696,0.36909554,82924.0,82923.0,0.0003368]
[1743361231043,2.05811893,82924.0,82923.0,8e-07]
[1743361231272,0.93154669,82924.0,82923.0,8e-07]
[1743361231528,0.95045163,82924.0,82923.0,8e-07]
[1743361231729,0.90074713,82924.0,82923.0,8e-07]
[1743361233268,1.00929211,82924.0,82923.0,8e-07]
[1743361233713,1.04009167,82924.0,82923.0,8e-07]
[1743361234337,1.03509167,82924.0,82923.0,8e-07]
[1743361234546,0.89941787,82924.0,82923.0,8e-07]
[1743361234756,0.99075787,82924.0,82923.0,8e-07]
[1743361235162,1.00529872,82924.0,82923.0,8e-07]
[1743361235372,1.02420221,82924.0,82923.0,8e-07]
[1743361235769,0.89675374,82924.0,82923.0,8e-07]
[1743361236549,0.47865374,82924.0,82923.0,8e-07]
[1743361238440,0.47817138,82924.0,82923.0,8e-07]
[1743361238845,0.33773138,82924.0,82923.0,8e-07]
[1743361239053,0.47821138,82924.0,82923.0,8e-07]
[1743361239280,0.47821138,82924.0,82923.0,0.0795008]
[1743361239281,0.16367053,82924.0,82923.0,0.0795008]
[1743361239458,0.32319053,82924.0,82923.0,0.0795008]
[1743361239967,0.02319053,82924.0,82923.0,0.0795008]
[1743361240715,0.32319053,82924.0,82923.0,0.0795008]
[1743361241748,0.32335903,82924.0,82923.0,0.0795008]
[1743361246634,0.31130003,82924.0,82923.0,0.0795008]
[1743361247164,0.01130003,82924.0,82923.0,0.0795008]
[1743361247384,0.01135731,82924.0,82923.0,0.0915598]
[1743361247521,0.01454085,82925.0,82923.0,0.0915598]
[1743361247701,0.01454085,82925.0,82924.0,0.253243]
[1743361248746,0.01854085,82925.0,82923.0,0.0795008]
[1743361249112,0.01654085,82925.0,82923.0,0.0795008]
[1743361250008,0.01854085,82925.0,82923.0,0.0795008]
[1743361250945,0.00020655,82924.0,82923.0,0.0795008]
[1743361252323,0.00120655,82924.0,82923.0,0.0795008]
[1743361255214,0.02500793,82924.0,82923.0,0.0795008]
[1743361255837,0.00610652,82924.0,82923.0,0.128552]
[1743361256028,0.00610652,82924.0,82923.0,0.174952]
[1743361256238,0.001,82924.0,82923.0,0.174952]
[1743361256510,0.001,82924.0,82923.0,0.19108863]
[1743361257142,0.0001685,82925.0,82924.0,0.378643]
[1743361257338,0.0001685,82925.0,82924.0,0.47590958]
[1743361258111,0.00021533,82928.0,82927.0,0.378633]
[1743361258316,0.0001684,82930.0,82927.0,0.678633]
[1743361258648,7.2e-07,82930.0,82929.0,0.683628]
[1743361258849,0.0001684,82939.0,82938.0,0.3712]
[1743361259135,0.0001684,82939.0,82938.0,0.372196]
[1743361260251,0.0001684,82939.0,82938.0,0.39460406]
[1743361261656,0.0001684,82939.0,82938.0,0.40660406]
[1743361262392,0.0001684,82939.0,82938.0,0.384196]
[1743361263339,0.0001684,82939.0,82938.0,0.378196]
[1743361263760,0.0001684,82939.0,82938.0,0.118996]
[1743361263959,0.0001684,82939.0,82938.0,0.079996]
[1743361264176,0.2533664,82939.0,82938.0,0.005996]
[1743361264380,0.0122254,82939.0,82938.0,0.005996]
[1743361264744,0.0122254,82939.0,82938.0,0.009996]
[1743361264745,0.0001684,82939.0,82938.0,0.009996]
[1743361264921,0.0001684,82939.0,82938.0,0.000996]
[1743361265362,0.0122254,82939.0,82938.0,0.002996]
[1743361266139,0.0122254,82939.0,82938.0,0.001996]
[1743361267436,0.0122254,82939.0,82938.0,0.000996]
[1743361267814,0.0132254,82939.0,82938.0,0.000996]
[1743361270932,0.0011684,82939.0,82938.0,0.0408859]
[1743361271137,0.0011684,82939.0,82938.0,0.1204859]
[1743361271336,0.0011684,82939.0,82938.0,0.14096425]
[1743361271512,0.0011684,82939.0,82938.0,0.14096408]
[1743361271690,0.0011684,82939.0,82938.0,0.138553]
[1743361272077,0.0001684,82939.0,82938.0,0.138553]
[1743361272275,0.0001684,82939.0,82938.0,0.2295766]
[1743361272462,0.0001684,82939.0,82938.0,0.2335766]
[1743361272664,0.0001684,82939.0,82938.0,0.142553]
[1743361272868,0.0001684,82939.0,82938.0,0.140553]
[1743361273556,0.0122254,82939.0,82938.0,0.002996]
[1743361273771,0.0001684,82939.0,82938.0,0.000996]
[1743361274097,0.0001684,82939.0,82938.0,0.002996]
[1743361274299,0.0001684,82939.0,82938.0,0.017053]
[1743361274511,0.0001684,82939.0,82938.0,0.013053]
[1743361274972,0.0011684,82939.0,82938.0,0.013053]
[1743361275191,0.0011684,82939.0,82938.0,0.000996]
[1743361275385,0.0011684,82939.0,82938.0,0.013053]
[1743361276022,0.0011684,82939.0,82938.0,0.0488445]
[1743361276223,0.0011684,82939.0,82938.0,0.013053]
[1743361276835,0.0011684,82939.0,82938.0,0.000996]
[1743361277031,0.0001684,82939.0,82938.0,0.013053]
[1743361280207,0.0001684,82939.0,82938.0,0.092653]
[1743361281905,0.0001684,82939.0,82938.0,0.09706403]
[1743361282597,0.0001684,82939.0,82938.0,0.094653]
[1743361283987,0.0001684,82939.0,82938.0,0.140553]
[1743361284272,0.0001684,82939.0,82938.0,0.20307084]
[1743361286657,0.0001684,82939.0,82938.0,0.20207084]
[1743361286856,0.0001684,82939.0,82938.0,0.44621384]
[1743361287135,0.0001684,82939.0,82938.0,0.4438028]
[1743361287800,0.0001684,82939.0,82938.0,0.4428028]
[1743361288171,0.0001684,82939.0,82938.0,0.4458028]
[1743361288522,0.0001684,82939.0,82938.0,0.385696]
[1743361291285,0.0001684,82939.0,82938.0,0.019053]
[1743361291488,0.0001684,82939.0,82938.0,0.006996]
[1743361291489,0.0122254,82939.0,82938.0,0.006996]
[1743361292685,0.0001684,82939.0,82938.0,0.006996]
[1743361293126,0.0122254,82939.0,82938.0,0.006996]
[1743361293334,0.0001684,82939.0,82938.0,0.006996]
[1743361296286,0.0001684,82939.0,82938.0,0.019053]
[1743361298007,0.0001684,82939.0,82938.0,0.0981266]
[1743361298184,0.0001684,82939.0,82938.0,0.2258266]
[1743361298802,0.3500042,82949.0,82945.0,0.241123]
[1743361299406,0.3500042,82949.0,82948.0,0.253169]
[1743361299587,0.3500042,82949.0,82948.0,0.3291214]
[1743361300184,0.3500042,82949.0,82948.0,0.253169]
[1743361300872,0.3501727,82949.0,82948.0,0.253169]
[1743361301413,0.0001685,82949.0,82948.0,0.253169]
[1743361301613,0.0001685,82949.0,82948.0,0.332069]
[1743361303056,0.0001685,82949.0,82948.0,0.334069]
[1743361303269,0.0001685,82949.0,82948.0,0.41821125]
[1743361304520,0.0001685,82949.0,82948.0,0.334069]
[1743361306204,0.0001685,82949.0,82948.0,0.333069]
[1743361306607,0.0001685,82949.0,82948.0,0.337069]
[1743361307989,0.0001685,82949.0,82948.0,0.342069]
[1743361308511,0.0001685,82949.0,82948.0,0.390769]
[1743361308712,0.0001685,82949.0,82948.0,0.4814965]
[1743361309269,0.0001685,82949.0,82948.0,0.7814965]
[1743361309469,1e-06,82959.0,82958.0,0.253139]
[1743361309726,0.1486,82999.0,82976.0,0.331984]
[1743361309727,0.02416736,82996.0,82976.0,0.331984]
[1743361309868,0.1,82999.0,82976.0,0.331984]
[1743361309869,0.340967,82999.0,82976.0,0.380684]
[1743361310079,0.012048,82996.0,82976.0,0.380684]
[1743361310276,0.353015,82999.0,82976.0,0.43906511]
[1743361310277,0.02441394,82997.0,82976.0,0.43906511]
[1743361310914,0.1,82999.0,82976.0,0.43906511]
[1743361311155,0.1,82999.0,82976.0,0.74859991]
[1743361311570,0.012049,82993.0,82976.0,0.44859991]
[1743361311763,0.012049,82993.0,82976.0,0.16257459]
[1743361311920,0.012048,82995.0,82976.0,0.11387459]
[1743361312123,0.112048,82999.0,82976.0,0.11387459]
[1743361312330,0.1,82999.0,82976.0,0.1182844]
[1743361313086,0.1,82999.0,82976.0,0.1669844]
[1743361313287,0.1,82999.0,82976.0,0.37530125]
[1743361313586,5e-07,82977.0,82976.0,0.37289144]
[1743361313925,5e-07,82977.0,82976.0,0.37889144]
[1743361314227,0.32404655,83016.0,83005.0,0.012047]
[1743361314446,0.012046,83015.0,83007.0,0.012047]
[1743361314647,0.012047,83007.0,83004.0,0.0009965]
[1743361314849,0.012047,83005.0,83004.0,0.0009965]
[1743361315292,0.0144585,83005.0,83004.0,0.0009965]
[1743361315447,0.0144585,83005.0,83004.0,0.00146582]
[1743361315650,0.18056,83008.0,83004.0,0.00146582]
[1743361316093,0.433547,83008.0,83004.0,0.00146582]
[1743361316304,0.012047,83005.0,83004.0,0.00146582]
[1743361317282,0.0750022,83005.0,83004.0,0.00146582]
[1743361317478,0.2572422,83005.0,83004.0,0.00146582]
[1743361317709,0.19678085,83005.0,83004.0,0.00146582]
[1743361317914,0.21450193,83005.0,83004.0,0.00146582]
[1743361318258,0.21495854,83005.0,83004.0,0.00146582]
[1743361318609,0.20291154,83005.0,83004.0,0.00146582]
[1743361318820,0.20291154,83005.0,83004.0,0.01351282]
[1743361319019,0.18837069,83005.0,83004.0,0.00146582]
[1743361319348,0.1966985,83005.0,83004.0,0.00146582]
[1743361319678,0.21123935,83005.0,83004.0,0.00146582]
[1743361319828,0.21123935,83005.0,83004.0,0.00046932]
[1743361319829,0.51123935,83005.0,83004.0,0.00046932]
[1743361320029,1.54719809,83005.0,83004.0,0.00046932]
[1743361320231,1.54719809,83005.0,82965.0,0.253117]
[1743361320232,0.012051,82974.0,82965.0,0.012053]
[1743361320596,0.012051,82977.0,82969.0,0.253105]
[1743361320813,0.012051,82976.0,82971.0,0.012052]
[1743361320974,0.012051,82975.0,82967.0,0.012052]
[1743361321152,0.241062,82967.0,82965.0,0.00046956]
[1743361321357,0.012053,82966.0,82965.0,0.00046956]
[1743361321770,0.01250928,82966.0,82965.0,0.00046956]
[1743361321992,0.03680925,82966.0,82965.0,0.00046956]
[1743361322394,0.0537616,82966.0,82965.0,0.00046956]
[1743361322916,0.0513501,82966.0,82965.0,0.00046956]
[1743361323075,0.3537616,82966.0,82965.0,0.00346956]
[1743361323281,0.4337501,82966.0,82965.0,0.00346956]
[1743361323492,0.53028775,82966.0,82965.0,0.00346956]
[1743361323692,0.53011031,82966.0,82965.0,0.00346956]
[1743361323891,0.53027881,82966.0,82965.0,0.00346956]
[1743361324106,0.43374116,82966.0,82965.0,0.00346956]
[1743361324754,0.43374116,82966.0,82965.0,0.00046956]
[1743361324971,0.43474116,82966.0,82965.0,0.00046956]
[1743361327840,0.48364116,82966.0,82965.0,0.00046956]
[1743361327968,5.49693691,82966.0,82965.0,5.6e-07]
[1743361328181,0.59016791,82966.0,82965.0,5.6e-07]
[1743361328422,0.59002992,82966.0,82965.0,5.6e-07]
[1743361328827,0.58902992,82966.0,82965.0,5.6e-07]
[1743361329062,0.58909452,82966.0,82965.0,5.6e-07]
[1743361329347,0.59409452,82966.0,82965.0,5.6e-07]
[1743361329548,0.60297553,82966.0,82965.0,5.6e-07]
[1743361329755,0.50144878,82966.0,82965.0,5.6e-07]
[1743361330589,0.48756777,82966.0,82965.0,5.6e-07]
[1743361331194,0.57760607,82966.0,82965.0,5.6e-07]
[1743361331409,0.22868147,82966.0,82965.0,5.6e-07]
[1743361331627,0.04152147,82966.0,82965.0,5.6e-07]
[1743361331844,0.22856147,82966.0,82965.0,5.6e-07]
[1743361332046,0.52856147,82966.0,82965.0,5.6e-07]
[1743361332259,0.5042615,82966.0,82965.0,5.6e-07]
[1743361332384,0.62239114,82966.0,82965.0,5.6e-07]
[1743361332801,0.5039815,82966.0,82965.0,5.6e-07]
[1743361333007,0.51852235,82966.0,82965.0,5.6e-07]
[1743361333656,0.0051685,82966.0,82965.0,0.07500056]
[1743361333872,0.0172215,82966.0,82965.0,0.07500056]
[1743361334602,0.2562835,82966.0,82965.0,0.07500056]
[1743361334803,0.2532835,82966.0,82965.0,0.07500056]
[1743361335012,0.2542835,82966.0,82965.0,0.07500056]
[1743361335509,0.2532835,82966.0,82965.0,0.07500056]
[1743361335715,0.2542835,82966.0,82965.0,0.07500056]
[1743361335914,0.27417471,82966.0,82965.0,0.07533736]
[1743361336130,0.02089121,82966.0,82965.0,0.07533736]
[1743361336334,0.26195321,82966.0,82965.0,0.00033736]
[1743361336734,0.243062,82966.0,82965.0,0.00033736]
[1743361337529,0.26965585,82966.0,82965.0,0.00033736]
[1743361338248,0.01654085,82966.0,82965.0,0.00033736]
[1743361338452,0.014053,82966.0,82965.0,0.00033736]
[1743361338717,0.002,82966.0,82965.0,0.00033736]
[1743361339033,0.014053,82966.0,82965.0,0.00033736]
[1743361340760,0.1419051,82966.0,82965.0,0.00033736]
[1743361340980,0.04748545,82966.0,82965.0,0.00033736]
[1743361341355,0.03100535,82966.0,82965.0,0.00033736]
[1743361343895,0.33100535,82966.0,82965.0,0.00033736]
[1743361344062,0.32859385,82966.0,82965.0,0.00033736]
[1743361347451,1.00296885,82966.0,82965.0,0.00033736]
[1743361347666,1.12325368,82966.0,82965.0,0.00033736]
[1743361347871,0.55599468,82966.0,82965.0,0.00033736]
[1743361348078,0.61590168,82966.0,82965.0,0.00033736]
[1743361348949,0.61590168,82966.0,82965.0,3.6e-07]
[1743361349155,0.53117868,82966.0,82965.0,3.6e-07]
[1743361349359,0.53134708,82966.0,82965.0,3.6e-07]
[1743361349848,0.53634708,82966.0,82965.0,3.6e-07]
[1743361351054,0.95444708,82966.0,82965.0,3.6e-07]
[1743361351601,0.96350822,82966.0,82965.0,3.6e-07]
[1743361352851,0.84322339,82966.0,82965.0,3.6e-07]
[1743361353018,1.02730339,82966.0,82965.0,3.6e-07]
[1743361353793,0.82368254,82966.0,82965.0,3.6e-07]
[1743361354013,0.9161614,82966.0,82965.0,3.6e-07]
[1743361354216,0.7323214,82966.0,82965.0,3.6e-07]
[1743361354421,0.93062225,82966.0,82965.0,3.6e-07]
[1743361355257,0.74686225,82966.0,82965.0,3.6e-07]
[1743361355458,1.05058708,82966.0,82965.0,3.6e-07]
[1743361355899,1.05558708,82966.0,82965.0,3.6e-07]
[1743361357389,0.74153408,82966.0,82965.0,3.6e-07]
[1743361358619,1.32790708,82966.0,82965.0,3.6e-07]
[1743361359424,1.62790708,82966.0,82965.0,3.6e-07]
[1743361362251,3.964e-05,82965.0,82951.0,0.0009935]
[1743361362450,0.26769885,82952.0,82951.0,0.00146385]
[1743361362699,0.26769885,82952.0,82951.0,0.00047035]
[1743361364735,0.26769885,82952.0,82951.0,0.00147035]
[1743361364984,0.56769885,82952.0,82951.0,0.00247035]
[1743361365174,0.74777885,82952.0,82951.0,0.08257035]
[1743361365557,0.553158,82952.0,82951.0,0.08257035]
[1743361365786,0.553158,82952.0,82951.0,0.12787035]
[1743361365787,0.733038,82952.0,82951.0,0.12787035]
[1743361365917,0.253158,82952.0,82951.0,0.12787035]
[1743361366918,0.27691763,82952.0,82951.0,0.12787035]
[1743361371143,0.29581219,82952.0,82951.0,0.12787035]
[1743361371344,0.27691763,82952.0,82951.0,0.12787035]
[1743361372427,0.37320359,82952.0,82951.0,0.12787035]
[1743361372605,0.37320359,82952.0,82951.0,0.12820715]
[1743361372929,0.27691763,82952.0,82951.0,0.12820715]
[1743361374769,0.27691763,82952.0,82951.0,0.08290715]
[1743361375150,0.29581226,82952.0,82951.0,0.08290715]
[1743361375567,0.29145848,82952.0,82951.0,0.00280715]
[1743361380623,0.59145848,82952.0,82951.0,0.00280715]
[1743361380803,0.71174331,82952.0,82951.0,0.00280715]
[1743361380999,0.73063881,82952.0,82951.0,0.00280715]
[1743361381168,0.71174331,82952.0,82951.0,0.00280715]
[1743361381366,0.59145848,82952.0,82951.0,0.00280715]
[1743361382088,0.29145848,82952.0,82951.0,0.08190715]
[1743361383024,0.27691763,82952.0,82951.0,0.08190715]
[1743361383225,0.57432,82958.0,82952.0,0.012055]
[1743361383431,0.57432,82958.0,82956.0,0.0791]
[1743361383654,0.57432,82958.0,82957.0,0.012054]
[1743361383829,0.57432,82958.0,82957.0,0.0791]
[1743361384602,0.586374,82958.0,82957.0,0.0791]
[1743361385736,0.57432,82958.0,82957.0,0.0791]
[1743361386269,0.57432,82958.0,82957.0,0.0811]
[1743361386805,0.57432,82958.0,82957.0,0.093154]
[1743361387837,0.57432,82958.0,82957.0,0.0811]
[1743361391449,0.815405,82958.0,82957.0,0.0811]
[1743361391654,0.827459,82958.0,82957.0,0.0811]
[1743361391844,0.64619247,82958.0,82957.0,0.0811]
[1743361392351,0.64619247,82958.0,82957.0,0.002]
[1743361393678,0.39305347,82958.0,82957.0,0.002]
[1743361394091,0.40510747,82958.0,82957.0,0.002]
[1743361394728,0.41964832,82958.0,82957.0,0.002]
[1743361397909,0.71964832,82958.0,82957.0,0.002]
[1743361398675,0.71964832,82958.0,82957.0,0.001]
[1743361398877,0.012055,82952.0,82951.0,0.00080715]
[1743361399102,0.19859585,82952.0,82951.0,0.00080715]
[1743361399665,0.43969885,82952.0,82951.0,0.00080715]
[1743361399836,0.85998368,82952.0,82951.0,0.00080715]
[1743361400260,0.85998368,82952.0,82951.0,0.00180715]
[1743361401315,0.88454774,82952.0,82951.0,0.00280715]
[1743361402104,0.76426291,82952.0,82951.0,0.00280715]
[1743361402524,0.53757982,82952.0,82951.0,0.00280715]
[1743361402737,0.54963482,82952.0,82951.0,0.00280715]
[1743361403635,0.241088,82957.0,82951.0,0.08380715]
[1743361403843,0.541089,82957.0,82951.0,0.09586215]
[1743361404078,0.541089,82957.0,82953.0,0.081]
[1743361404079,0.3,82957.0,82953.0,0.081]
[1743361404278,0.02424872,82956.0,82953.0,0.081]
[1743361404683,0.253148,82955.0,82953.0,0.081]
[1743361404977,0.012054,82954.0,82953.0,0.081]
[1743361405884,0.012054,82955.0,82953.0,0.081]
[1743361406016,0.02424872,82956.0,82955.0,0.012054]
[1743361406618,0.02424872,82956.0,82953.0,0.082]
[1743361406836,0.02424872,82956.0,82953.0,0.083]
[1743361407325,0.253148,82955.0,82953.0,0.083]
[1743361407517,0.02424872,82956.0,82953.0,0.083]
[1743361407726,0.241094,82955.0,82953.0,0.083]
[1743361407865,0.012054,82954.0,82953.0,0.082]
[1743361408066,0.012054,82954.0,82953.0,0.081]
[1743361408688,0.253149,82955.0,82953.0,0.081]
[1743361409189,0.07208668,82955.0,82953.0,0.082]
[1743361409542,0.012054,82954.0,82953.0,0.082]
[1743361411042,0.41688787,82958.0,82953.0,0.39440829]
[1743361411206,0.39322197,82958.0,82953.0,0.39440829]
[1743361411409,0.0001685,82958.0,82953.0,0.14125329]
[1743361411579,0.0122225,82958.0,82953.0,0.14225329]
[1743361411778,0.012054,82957.0,82953.0,0.082]
[1743361412132,0.0001685,82958.0,82953.0,0.323099]
[1743361412333,0.0011685,82958.0,82955.0,0.241091]
[1743361412557,0.0011685,82958.0,82954.0,0.253146]
[1743361412784,0.0001685,82958.0,82954.0,0.253146]
[1743361413146,0.0001685,82958.0,82957.0,0.382742]
[1743361414743,0.0011685,82958.0,82957.0,0.382742]
[1743361414950,0.0011685,82958.0,82957.0,0.384742]
[1743361415152,0.0001685,82958.0,82957.0,0.384742]
[1743361415558,0.0001685,82958.0,82957.0,0.386742]
[1743361416182,0.0001685,82958.0,82957.0,0.49549093]
[1743361418463,0.0001685,82958.0,82957.0,0.386742]
[1743361425812,0.0001685,82958.0,82957.0,0.686742]
[1743361426014,0.0001685,82958.0,82957.0,0.81202683]
[1743361426224,0.0001685,82958.0,82957.0,0.81002683]
[1743361426579,0.0001685,82958.0,82957.0,0.81602683]
[1743361426763,0.0001685,82958.0,82957.0,0.93631166]
[1743361427188,0.0001685,82958.0,82957.0,0.97934683]
[1743361427630,0.0001685,82958.0,82957.0,0.98534683]
[1743361427861,0.0001685,82958.0,82957.0,0.97934683]
[1743361428073,0.0001685,82958.0,82957.0,0.97334683]
[1743361428403,0.0001685,82958.0,82957.0,0.98534683]
[1743361431588,0.0001685,82958.0,82957.0,0.98438683]
[1743361431769,0.0001685,82958.0,82957.0,0.81502683]
[1743361431964,0.0001685,82958.0,82957.0,0.98438683]
[1743361432310,0.0001685,82958.0,82957.0,0.864102]
[1743361432851,0.0001685,82958.0,82957.0,0.863902]
[1743361433054,0.0002685,82958.0,82957.0,0.863902]
[1743361435502,0.0002685,82958.0,82957.0,0.694742]
[1743361435702,0.0002685,82958.0,82957.0,0.863102]
[1743361436140,0.0002685,82958.0,82957.0,0.694742]
[1743361436351,0.0002685,82958.0,82957.0,0.862902]
[1743361437229,0.0002685,82958.0,82957.0,0.694742]
[1743361437611,0.0002685,82958.0,82957.0,0.856622]
[1743361437989,0.0002685,82958.0,82957.0,0.850502]
[1743361438143,0.0002685,82958.0,82957.0,0.388742]
[1743361438329,0.0002685,82958.0,82957.0,0.265142]
[1743361439310,0.0002685,82958.0,82957.0,0.012]
[1743361439458,0.2534075,82958.0,82957.0,0.012]
[1743361440209,0.2534075,82958.0,82957.0,0.006]
[1743361440428,0.2534075,82958.0,82957.0,0.01]
[1743361440786,0.2534075,82958.0,82957.0,0.006]
[1743361441142,0.241091,82956.0,82955.0,0.000337]
[1743361441546,0.253145,82956.0,82955.0,0.000337]
[1743361441935,0.0002685,82958.0,82957.0,0.012054]
[1743361444716,0.0002685,82958.0,82957.0,0.254142]
[1743361444868,0.0002685,82958.0,82957.0,0.256142]
[1743361445253,0.0002685,82958.0,82957.0,0.336642]
[1743361449239,0.0002685,82958.0,82957.0,0.803642]
[1743361449469,0.0002685,82958.0,82957.0,0.92392683]
[1743361449666,0.0002685,82958.0,82957.0,1.04921166]
[1743361449906,0.0002685,82958.0,82957.0,1.11089116]
[1743361450241,0.0002685,82958.0,82957.0,0.99060633]
[1743361450686,0.0002685,82958.0,82957.0,0.98860633]
[1743361450914,0.0002685,82958.0,82957.0,0.98760633]
[1743361451112,0.0002685,82958.0,82957.0,0.99360633]
[1743361451314,0.0002685,82958.0,82957.0,0.99860633]
[1743361451559,0.0002685,82958.0,82957.0,1.11889116]
[1743361453371,0.0002685,82958.0,82957.0,0.7063215]
[1743361453518,0.0002685,82958.0,82957.0,0.8729215]
[1743361454123,0.0002685,82958.0,82957.0,0.7063215]
[1743361454442,0.0002685,82958.0,82957.0,0.8727215]
[1743361460238,5e-07,82958.0,82957.0,0.8727215]
[1743361460428,5e-07,82958.0,82957.0,1.11829116]
[1743361460927,5e-07,82958.0,82957.0,1.11329116]
[1743361461163,5e-07,82958.0,82957.0,1.28003201]
[1743361461297,5e-07,82958.0,82957.0,1.2950199]
[1743361461922,5e-07,82958.0,82957.0,1.30939599]
[1743361462642,5e-07,82958.0,82957.0,1.30339599]
[1743361462836,5e-07,82958.0,82957.0,1.30939599]
[1743361463651,5e-07,82958.0,82957.0,1.18219599]
[1743361464102,5e-07,82958.0,82957.0,1.1678199]
[1743361464497,9.4e-07,82966.0,82965.0,0.317053]
[1743361464622,9.4e-07,82966.0,82965.0,0.64764993]
[1743361464821,9.4e-07,82966.0,82965.0,1.10649078]
[1743361465046,0.0001684,83004.0,82965.0,1.10649078]
[1743361465047,0.0001684,83004.0,83003.0,0.253002]
[1743361466285,0.0001684,83004.0,83003.0,0.25347235]
[1743361466881,0.0001684,83004.0,83003.0,0.25747235]
[1743361467086,0.0001684,83004.0,83003.0,0.33382148]
[1743361467330,0.0001684,83004.0,83003.0,0.32982148]
[1743361467512,0.0001684,83004.0,83003.0,0.33382148]
[1743361468096,0.0001684,83004.0,83003.0,0.33782148]
[1743361468925,0.0001684,83004.0,83003.0,0.26147235]
[1743361469769,0.0001684,83004.0,83003.0,0.26245555]
[1743361469910,0.0001684,83004.0,83003.0,0.42653555]
[1743361470444,0.0002684,83004.0,83003.0,0.42653555]
[1743361470866,0.0002684,83004.0,83003.0,0.42253555]
[1743361471369,0.0002684,83004.0,83003.0,0.49455354]
[1743361471593,0.0002684,83004.0,83003.0,0.42453555]
[1743361472503,0.0002684,83004.0,83003.0,0.42053555]
[1743361472797,0.0002684,83004.0,83003.0,0.42253555]
[1743361475429,0.0002684,83004.0,83003.0,0.42053555]
[1743361475729,0.0002684,83004.0,83003.0,0.42353555]
[1743361476401,0.0002684,83004.0,83003.0,0.42153555]
[1743361476599,0.0002684,83004.0,83003.0,0.42453555]
[1743361480466,4e-07,83004.0,83003.0,0.96552038]
[1743361480730,4e-07,83004.0,83003.0,1.41182038]
[1743361480931,4e-07,83004.0,83003.0,1.41582038]
[1743361481102,4e-07,83004.0,83003.0,1.44084857]
[1743361481303,4e-07,83004.0,83003.0,1.45538942]
[1743361481519,4e-07,83004.0,83003.0,1.55494141]
[1743361481686,4e-07,83004.0,83003.0,1.55094141]
[1743361481886,4e-07,83004.0,83003.0,1.55710141]
[1743361482289,4e-07,83004.0,83003.0,1.68430141]
[1743361482662,4e-07,83004.0,83003.0,1.68830141]
[1743361483063,9e-07,83004.0,83003.0,1.68830141]
[1743361483300,9e-07,83004.0,83003.0,1.68430141]
[1743361483498,9e-07,83004.0,83003.0,1.69030141]
[1743361486529,8e-07,83023.0,83022.0,0.392045]
[1743361486731,8e-07,83023.0,83022.0,1.21686046]
[1743361486930,0.240799,83057.0,83048.0,0.240822]
[1743361487153,0.012039,83063.0,83028.0,0.3]
[1743361487154,0.1328,83056.0,83051.0,0.01204]
[1743361487354,0.02369671,83052.0,83051.0,0.01204]
[1743361488149,0.0498,83056.0,83054.0,0.01204]
[1743361488594,0.0498,83056.0,83052.0,0.240812]
[1743361488788,0.0498,83056.0,83052.0,0.252852]